Cogmind - Beta 10.1 @@@ ROGUE MODE // 2020.10.28 @ 09:43:29 Player: W_W Result: Destroyed by G-47 Trooper with Particle Gun Performance ------------- Evolutions (0) 0 Regions Visited (2) 400 Robots Destroyed (28) 140 Value Destroyed (492) 492 Prototype IDs (0) 0 Alien Tech Used (0) 0 Bonus (0) 0 TOTAL SCORE: 1032 Bonus ------- None Cogmind --------- Core Integrity 0/250 Matter 300/300 Energy 125/125 System Corruption 0% Temperature Cool (9) Movement Walking (150) Ox1 Location -10/Mines Parts ------- > --- POWER (1) -------- Light Ion Engine > --- PROPULSION (2) --- Aluminum Leg Aluminum Leg > --- UTILITY (2) ------ Large Storage Unit Large Storage Unit > --- WEAPON (2) ------- Assault Rifle > --- INVENTORY (16) --- Light Ion Engine Light Ion Engine Small Storage Unit High-capacity Battery (400) Small Laser Datajack Mining Laser Heavy Explosive Trap Heavy Explosive Trap Heavy Explosive Trap Peak State ------------ > --- POWER ------------ Light Ion Engine > --- PROPULSION ------- Light Treads Light Treads > --- UTILITY ---------- Large Storage Unit Large Storage Unit > --- WEAPON ----------- EM Pulse Gun Light Assault Rifle > --- INVENTORY -------- Light Ion Engine Light Ion Engine Light Ion Engine Small Storage Unit High-capacity Battery Medium Laser Assault Rifle Datajack Mining Laser Heavy Explosive Trap Heavy Explosive Trap Heavy Explosive Trap [Rating: 9] Favorites ----------- Power Light Ion Engine Engine Light Ion Engine Propulsion Light Treads Treads Light Treads Leg Aluminum Leg Utility Large Storage Unit Storage Large Storage Unit Weapon EM Pulse Gun Energy Gun EM Pulse Gun Ballistic Gun Light Assault Rifle Build | -11 -10 -10 ------- Run | Scr Mat Min Slots Evolved . | . . . Power . | . . . Propulsion . | . . . Utility . | . . . Weapon . | . . . Parts Attached 13 | 6 2 5 Power 2 | 1 . 1 Engine 2 | 1 . 1 Core . | . . . Reactor . | . . . Propulsion 4 | 2 . 2 Treads 2 | 2 . . Leg 2 | . . 2 Wheel . | . . . Hover . | . . . Flight . | . . . Utility 3 | 1 2 . Device . | . . . Storage 3 | 1 2 . Processor . | . . . Hackware . | . . . Protection . | . . . Artifact . | . . . Weapon 4 | 2 . 2 Energy Gun 2 | 1 . 1 Energy Cannon . | . . . Ballistic Gun 2 | 1 . 1 Ballistic Cannon . | . . . Launcher . | . . . Special Weapon . | . . . Impact Weapon . | . . . Slashing Weapon . | . . . Piercing Weapon . | . . . Special Melee Weapon . | . . . Unidentified Prototypes . | . . . Parts Lost 6 | . . 6 Power 1 | . . 1 Propulsion 2 | . . 2 Utility . | . . . Weapon 3 | . . 3 Highest Loss Streak 4 | . . 4 Average Slot Usage (%) 89 | . 99 84 Engine 13 | . 14 13 Treads 18 | . 28 13 Leg 5 | . . 8 Storage 27 | . 27 28 Energy Gun 8 | . 14 5 Ballistic Gun 13 | . 14 13 Naked Turns . | . . . Heaviest Build 38 | 10 38 38 Greatest Support 40 | 40 40 40 Greatest Overweight (x) 3 | . . 3 Average Overweight (x) . | . . . Largest Inventory Capacity 16 | 6 16 16 Average Capacity 13 | 5 15 16 Most Carried 12 | 5 9 12 Average Carried 8 | 2 6 10 Final Capacity 16 | 6 16 16 Final Carried 10 | 5 9 10 Class Distribution -------------------- 100% | Mutant Dominant Class ---------------- Mutant | -10/Materials Mutant | -10/Mines Resources | -11 -10 -10 ----------- Run | Scr Mat Min Matter Collected 505 | 307 32 166 Remotely . | . . . Salvage Created 807 | 340 110 357 Parts 58 | 32 12 14 Haulers Intercepted . | . . . Recyclers Shooed . | . . . Parts Field Recycled . | . . . Retrieved Matter . | . . . Parts Self-Destructed . | . . . Prevented . | . . . Kills | -11 -10 -10 ------- Run | Scr Mat Min Combat Hostiles Destroyed 12 | . 4 8 Guns 11 | . 3 8 AOE 1 | . 1 . Classes Destroyed 7 | 3 4 . Worker 4 | 4 . . Builder 1 | . 1 . Tunneler 9 | 9 . . Recycler 1 | 1 . . Watcher 1 | . 1 . Swarmer 3 | . 3 . Grunt 9 | . 1 8 Best Kill Streak 4 | 4 3 4 Combat Bots Only 4 | . 2 4 Max Kills in Single Turn 1 | 1 1 1 Gunslinging . | . . . Exploded 1 | . 1 . Melee . | . . . Uniques/NPCs Destroyed . | . . . Combat | -11 -10 -10 -------- Run | Scr Mat Min Damage Taken 967 | . 300 667 Core 250 | . 54 196 Absorbed by Shields . | . . . Core Remaining (%) 100 | 100 . . Volleys Fired 112 | 47 19 46 Largest 2 | 2 2 2 Hottest 70 | 60 60 70 Shots Fired 192 | 94 38 60 Gun 192 | 94 38 60 Cannon . | . . . Launcher . | . . . Special . | . . . Kinetic 112 | 47 19 46 Thermal 11 | . . 11 Explosive . | . . . Electromagnetic 69 | 47 19 3 Robot Hit Streak 15 | 8 7 15 Robot Miss Streak 4 | 4 3 4 Penetration Max . | . . . Secondary Targets 2 | . 1 1 Max Gunslinging Chain 1 | . 1 1 Shots Hit Robots 99 | 40 22 37 Core Hits 46 | 17 10 19 Critical Hits 1 | . . 1 Critical Kills . | . . . Critical Parts Destroyed 1 | . . 1 Melee Attacks . | . . . Impact . | . . . Slashing . | . . . Piercing . | . . . Sneak Attacks . | . . . Combat Hostiles . | . . . Follow-up Attacks . | . . . Damage Inflicted 1360 | 489 360 511 Guns 1171 | 427 250 494 Cannons . | . . . Explosions 167 | 62 105 . Melee . | . . . Ramming 22 | . 5 17 Kinetic 500 | 90 59 351 Thermal 267 | 62 105 100 Explosive . | . . . Electromagnetic 571 | 337 191 43 Impact . | . . . Slashing . | . . . Piercing . | . . . Highest Corruption . | . . . Average Corruption . | . . . Corruption Purged . | . . . Overload Shots . | . . . Overflow Damage 8 | 8 . . Projectiles . | . . . Explosions 8 | 8 . . Melee . | . . . Knockbacks 1 | . 1 . Impact 1 | . 1 . Kinetic . | . . . Secondary . | . . . Self-Inflicted Damage 45 | . 45 . Shots 1 | . 1 . Rammed 2 | . 1 1 Targets Rammed 3 | . 2 1 Kicked . | . . . Crushed 1 | . 1 . Highest Temperature 103 | 100 103 101 Average Temperature 37 | 38 37 33 Received Heat Transfer 477 | . 102 375 Siege Activations . | . . . Robots Corrupted . | . . . Combat Hostiles . | . . . Parts Fried 1 | 1 . . Impact Corruptions . | . . . Robots Melted . | . . . Combat Hostiles . | . . . Parts Melted . | . . . Heat Transferred 446 | 100 50 296 Parts Sabotaged . | . . . Parts Stolen . | . . . Parts Stripped . | . . . Power Chain Reactions 3 | 2 1 . Missiles Intercepted . | . . . Alert | -11 -10 -10 ------- Run | Scr Mat Min Peak Influence 222 | 70 222 100 Initial 45 | . 45 8 Average 46 | 35 90 27 Maximum Alert Level 1 | . 1 . Low Security (%) 96 | 100 86 100 Level 1 3 | . 13 . Level 2 . | . . . Level 3 . | . . . Level 4 . | . . . Level 5 . | . . . High Security . | . . . Max Security . | . . . Squads Dispatched 3 | . 3 . Investigation . | . . . Extermination . | . . . Reinforcement 3 | . 3 . Assault . | . . . Garrison . | . . . Intercept . | . . . Construction Impeded . | . . . Haulers Reinforced . | . . . Stealth | -11 -10 -10 --------- Run | Scr Mat Min Distress Signals 2 | . 2 . Communications Jammed . | . . . Distress Signals . | . . . Times Spotted 29 | . 16 13 Peak Tracking Total 6 | . 3 6 Tactical Retreats 5 | . 2 3 Traps | -11 -10 -10 ------- Run | Scr Mat Min Traps Triggered . | . . . Indirectly . | . . . Trap Hack Attempts . | . . . Triggered . | . . . Disarmed . | . . . Reprogrammed . | . . . Reused 1 | . . 1 Traps Extracted . | . . . Installed 2 | . . 2 Triggered 2 | . 1 1 Machines | -11 -10 -10 ---------- Run | Scr Mat Min Machines Disabled 1 | . 1 . Max in Single Turn 1 | . 1 . Machines Sabotaged . | . . . Garrisons Compromised . | . . . Overloaded Fab Kills . | . . . Fab Network Shutdowns . | . . . Hacking | -11 -10 -10 --------- Run | Scr Mat Min Machines Accessed 2 | . 2 . Terminals 1 | . 1 . Fabricators . | . . . Repair Stations . | . . . Recycling Units 1 | . 1 . Scanalyzers . | . . . Garrison Access . | . . . Total Hacks 3 | . 3 . Successful 1 | . 1 . Failed 2 | . 2 . Catastrophic . | . . . Database Lockouts . | . . . Manual . | . . . Terminals 2 | . 2 . Fabricators . | . . . Repair Stations . | . . . Recycling Units 1 | . 1 . Scanalyzers . | . . . Garrison Access . | . . . Terminal Hacks . | . . . Fabricator Hacks . | . . . Repair Station Hacks . | . . . Recycling Unit Hacks 1 | . 1 . Report Inventory 1 | . 1 . Scanalyzer . | . . . Garrison Access Hacks . | . . . Unauthorized Hacks . | . . . Terminals . | . . . Fabricators . | . . . Repair Stations . | . . . Recycling Units . | . . . Scanalyzers . | . . . Garrison Access . | . . . Data Cores Recovered . | . . . Used . | . . . Hacking Detections 1 | . 1 . Full Trace Events 1 | . 1 . Feedback Events . | . . . Feedback Blocked . | . . . Robot Schematics Acquired . | . . . Robots Built . | . . . Matter . | . . . Time . | . . . Total Robot Build Rating . | . . . Part Schematics Acquired . | . . . Parts Built . | . . . Matter . | . . . Time . | . . . Total Part Build Rating . | . . . Parts Repaired . | . . . Time . | . . . Parts Recycled . | . . . Recycled Matter . | . . . Retrieved Matter . | . . . Retrieved Components . | . . . Parts Scanalyzed . | . . . Part Schematics Acquired . | . . . Parts Damaged . | . . . Bothacking | -11 -10 -10 ------------ Run | Scr Mat Min Used RIF Installer . | . . . Robots Hacked . | . . . Non-combat . | . . . Combat . | . . . Robot Hacks Applied . | . . . Relay Couplers Released . | . . . Robots Rewired . | . . . Allies Hacked . | . . . Hacks Repelled . | . . . Allies | -11 -10 -10 -------- Run | Scr Mat Min Total Allies . | . . . Largest Group . | . . . Highest-Rated Group . | . . . Highest-Rated Ally . | . . . Total Orders . | . . . Ally Attacks . | . . . Total Damage . | . . . Kills . | . . . Allies Corrupted . | . . . Allies Melted . | . . . Intel | -11 -10 -10 ------- Run | Scr Mat Min Robot Analysis Total . | . . . Derelict Logs Recovered 2 | . . 2 Drone Launches . | . . . Drone Recoveries . | . . . Exploration | -11 -10 -10 ------------- Run | Scr Mat Min Turns Passed 1615 | 332 438 845 Spaces Moved 781 | 109 233 439 Core 3 | 3 . . Treads 614 | 106 233 275 Legs 164 | . . 164 Wheels . | . . . Hover . | . . . Flight . | . . . Fastest Speed 50 | 50 160 150 Average Speed 160 | 156 160 162 Slowest Speed 210 | 160 160 210 Overloaded Moves . | . . . Propulsion Burnouts . | . . . Robots Hopped . | . . . Cave-ins Triggered . | . . . Exploration Rate (%) 43 | 6 47 77 Regions Visited 2 Branch Regions 1 Pre-discovered Areas 2 | . . 2 Known Exits Taken . | . . . Unknown Exits Taken 2 | 1 1 . Scrap Searched 1 | . . 1 Spaces Dug . | . . . Terrain Destroyed 8 | 4 4 . Melee . | . . . Projectile . | . . . AOE 8 | 4 4 . Terrain Rammed . | . . . Walls Destroyed . | . . . Machines Disabled . | . . . Actions | -11 -10 -10 --------- Run | Scr Mat Min Total 954 | 182 262 510 Wait 32 | 16 4 12 Move 779 | 108 232 439 Hop . | . . . Pick Up 13 | 5 3 5 Fast Attach 8 | 6 1 1 Attach 4 | . . 4 Detach . | . . . Swap 1 | . 1 . Drop . | . . . Fire 112 | 47 19 46 Melee . | . . . Ram . | . . . Kick . | . . . Crush 3 | . 2 1 Escape Stasis . | . . . Rewire . | . . . Trap 2 | . . 2 Miscellaneous . | . . . Route ------- -11/Scrapyard -10/Materials -10/Mines (discovered 1 exit: [*Mat]) History --------- Turn | Location | Event 14 | -11/Scrapyard | Discovered new exit (range 15) 333 | -11/Scrapyard | Entered Materials 334 | -10/Materials | Build established: Mutant 420 | -10/Materials | Discovered new exit (range 12) 771 | -10/Materials | Entered Mines 783 | -10/Mines | Found a hidden stash of uninstalled traps 788 | -10/Mines | Met a Derelict bent on vengeance 870 | -10/Mines | Learned location of Storage (-8) 1039 | -10/Mines | Learned Materials emergency access door positions 1098 | -10/Mines | Core integrity fell below 50% 1099 | -10/Mines | Lost 4 parts (1p1n2w) 1298 | -10/Mines | Discovered new exit (range 7) 1329 | -10/Mines | Core integrity fell below 20% 1616 | -10/Mines | Destroyed by G-47 Trooper with Particle Gun Last Messages --------------- 01156_ K-01 Serf collects debris. 01262_ Acquired 10 matter. 01298_ EXIT=FOUND 01316_ Lgt. Treads destroyed. 01316_ G-47 Trooper suffers critical hit. 01316_ Destroyed Particle Gun. 01332_ G-34 Mercenary destroyed. 01345_ Acquired 36 matter. 01366_ Acquired Aluminum Leg. 01392_ G-34 Mercenary destroyed. 01397_ Acquired 38 matter. 01402_ Acquired Sml. Laser. 01416_ K-01 Serf collects debris. 01419_ Acquired 13 matter. 01442_ G-47 Trooper destroyed. 01450_ Acquired 3 matter. 01534_ Searching scrap... 01534_ Found Sml. Battery. 01534_ Found 34 Matter. 01593_ U-05 Engineer lays Concrete. Map ----- +----------------------------------------------------+ | | | | | | | | | | | | | | | | | | | ?????????????????????????????????????????????????? | | ?????????????????????????????????????????????????? | | ???######??????????????????????????########??????? | | ??## ############???????????????# #??????? | | ??# #??######???????# #??????? | | ??# ######### #### ##?###### #??????? | | ??# #???????# #?# < #??????? | | ??# ##???????# #?# #### #??????? | | ??# ##????????#### #?# #??# #??????? | | ?## ##????????????## g ##?# #??# #??????? | | ## #??????????????####g##??# #??########??????? | | # #?????????????????# #??## #????????????????? | | # ##????????????????# #?## ##???????????????? | | ## ##???????????????# #?# ##??????????????? | | ?# ################# #?# = ##?????????????? | | ## #?## ##????????????? | | # ##################@##### ###??????????? | | #????????????????# ## #??????????? | | #????????????????##### ##### #??????????? | | # ##??????????####??????# #???# ##??????????? | | #######??????????## ##?????# #???# #???????????? | | ??????????######## ##????# #???# #???????????? | | ??????????# ###### #???# #???????????? | | ??????##### ##### #???????????? | | ?????## ## ###### ##### % % ##??????????? | | ?????# # ##???## ##??#######= =#??????????? | | ?????# ##???# #???###??##%%#??????????? | | ?????## ##??# #??## ##??# #??????????? | | ??????# #??## #### #??# #######????? | | ???#### ##### ## ####% ## #????? | | ??## # ###### | | ??# ## | | ??# ## ## ### ## | | ??# ## ## #?############### | | ??# ### ### #??????????????## | | ??# #?# #?####### #?????????????## | | ?## #?# #???????#### ##?????????????# | | ?# #?# #??????????####??????????????# | | ?# ## #?# #????????????????????????????# | | ## #### #????????????????????????????## | | # #??? #????????????######??????????## | +----------------------------------------------------+ Best States ------------- Heat Dissipation 25 Energy Generation 10 Energy Capacity 125 Matter Stores 300 Matter Capacity 300 Sight Range 16 Terrain Scan Density 10 Evasion (%) 40 Recoil Reduction 2 Item Schematics ----------------- None Robot Schematics ------------------ None Fabricated ------------ Nothing Alien Tech Used ----------------- None Achievements -------------- None Challenges ------------ None Game ------ Seed LauncherFrostManipulator Manual? 0 Play Time 00:12:24 Cumulative 63.0 hours Start 2020.10.28 @ 09:34:52 End 2020.10.28 @ 09:43:29 Sessions 1 Manual Loads 0 Difficulty Rogue Special Mode None Game No. 59 Rogue 59 Adventurer 0 Explorer 0 Win Type - Total 0 Types 0/0/0/0/0/0/0/0/0 Lore% 29 Gallery% 31 Achievement% 26 Wizard Run 0 Options --------- ASCII 0 Keyboard 0 Movement Numpad Keybinds 0 Fullscreen 1 Font 18/SmallcapsGlow Map View 76x50 Tactical HUD 1 Map Filters NONE Filters NONE Steam 1 RUN: c2a85b7a-6064-426b-8cab-93803f585477